fUSD/lending_fUSD_20251224
["ID","MTS","AMOUNT","RATE_DAILY","PERIOD"]
[399630115,1766573961446,-432.54429703,0.00013796,2]
[399630116,1766573970409,-185.98743255,0.00013796,2]
[399630117,1766573993957,-325.55152932,0.00013796,2]
[399630118,1766573996318,-368.19506996,0.00013796,2]
[399630119,1766573998906,-195.08800762,0.00013796,2]
[399630121,1766574001782,-267.01941217,0.00013796,2]
[399630122,1766574003182,-174.23,0.00013796,2]
[399630123,1766574004757,-264.0,0.00013796,2]
[399630124,1766574004782,-225.69646884,0.00013796,2]
[399630125,1766574007049,-225.12323911,0.00013796,2]
[399630126,1766574009130,-259.91434743,0.00013796,2]
[399630127,1766574010883,-390.88751809,0.00013796,2]
[399630128,1766574013742,-215.15057618,0.00013796,2]
[399630129,1766574013766,-97.60997479,0.00013796,2]
[399630132,1766574068004,10000.01,7.945e-05,2]
[399630133,1766574068031,5583.998949,7.945e-05,2]
[399630134,1766574081680,437.19038665,0.00032,120]
[399630135,1766574090849,176.57641991,0.00032,120]
[399630136,1766574091726,199.50460655,0.00032,120]
[399630137,1766574092916,218.75941561,0.00032,120]
[399630138,1766574101076,250.75064333,0.00032,120]
[399630139,1766574101799,218.88703433,0.00032,120]
[399630140,1766574103140,172.71117404,0.00032,120]
[399630141,1766574111081,190.02,0.00032,120]
[399630142,1766574189933,-456.90710145,0.00013698,2]
[399630143,1766574203402,-159.44808783,0.00013698,2]
[399630144,1766574206061,-170.87836276,0.00013698,2]
[399630145,1766574207089,-202.617375,0.00013629,2]
[399630146,1766574207113,-35.66461074,0.00013698,2]
[399630147,1766574249551,-377.10183722,0.00013698,2]
[399630148,1766574249574,-240.95275072,0.00013698,2]
[399630149,1766574278646,-200.0,0.00013696,2]
[399630150,1766574308449,-172.36889812,0.00013362,2]
[399630151,1766574313423,-504.53668497,0.00013362,2]
[399630152,1766574315605,-195.0,0.00013362,2]
[399630153,1766574319072,-239.51454569,0.00013362,2]
[399630154,1766574320520,-245.8797037,0.00013362,2]
[399630155,1766574322512,-305.57895026,0.00013362,2]
[399630156,1766574326582,-189.11722755,0.00013362,2]
[399630157,1766574331262,-722.94592374,0.00013362,2]
[399630158,1766574334425,-314.75703618,0.00013362,2]
[399630159,1766574337691,-250.0,0.00013362,2]
[399630160,1766574369052,-297.26,0.00013302,2]
[399630161,1766574396919,349.75230932,0.00032,120]
[399630162,1766574405460,176.57641991,0.00032,120]
[399630163,1766574407086,218.75941562,0.00032,120]
[399630164,1766574416677,200.60051466,0.00032,120]
[399630165,1766574418403,172.71117404,0.00032,120]
[399630166,1766574465357,500.0,0.00032,120]
[399630167,1766574488496,500.0,0.00032,120]
[399630168,1766574494221,1336.93,0.0001304,2]
[399630169,1766574498701,-641.03,0.00013124,2]
[399630170,1766574498735,-4063.467343,0.00013301,2]
[399630171,1766574498946,-591.015314,0.00013301,2]
[399630172,1766574498979,-193.0,0.00013301,2]
[399630173,1766574499010,-195.0,0.00013301,2]
[399630174,1766574499041,-300.0,0.00013301,2]
[399630175,1766574499072,-2511.6,0.00013302,2]
[399630176,1766574499103,-195.0,0.00013308,2]
[399630177,1766574499136,-195.0,0.00013316,2]
[399630178,1766574499164,-300.0,0.00013322,2]
[399630179,1766574499198,-250.0,0.00013331,2]
[399630180,1766574499380,-1200.0,0.00013361,2]
[399630181,1766574502121,-516.81572099,0.00013362,2]
[399630182,1766574503217,-243.32495825,0.00013362,2]
[399630183,1766574505131,-220.07387993,0.00013362,2]
[399630184,1766574509086,-2377.52315828,0.00013362,2]
[399630185,1766574509143,-10000.01,0.00013362,2]
[399630186,1766574509263,-21.70331234,0.00013362,2]
[399630187,1766574509292,-250.0,0.00013484,2]
[399630188,1766574509321,-344.622612,0.00013696,2]
[399630189,1766574509351,-1200.0,0.00013698,2]
[399630190,1766574509379,-300.0,0.00013698,2]
[399630191,1766574509408,-359.87,0.00013699,2]
[399630192,1766574509548,-5047.61815132,0.00013699,2]
[399630193,1766574509574,-10000.01,0.00013699,2]
[399630194,1766574510719,-170.42,0.00013387,2]
[399630195,1766574510748,-663.96184868,0.00013699,2]
[399630196,1766574510777,-1002.8809457,0.00013795,2]
[399630197,1766574510807,-402.39002521,0.00013796,2]
[399630198,1766574510836,-544.622612,0.00013847,2]
[399630199,1766574510865,-200.0,0.0001388,2]
[399630200,1766574510898,-544.622612,0.00013997,2]
[399630201,1766574510927,-150.0,0.00014062,2]
[399630202,1766574512022,-0.02,0.00014063,2]
[399630203,1766574512063,-2642.19391282,0.00014063,2]
[399630204,1766574512119,-2642.23391282,0.00014063,2]
[399630205,1766574512196,-4715.54217436,0.00014063,2]
[399630206,1766574512244,-4999.99,0.00014063,2]
[399630207,1766574512407,-5000.0,0.00014063,2]
[399630208,1766574512426,-4715.54217436,0.00014063,2]
[399630209,1766574512439,-568.92565128,0.00014063,2]
[399630210,1766574512460,-4999.99,0.00014063,2]
[399630211,1766574512482,-0.03,0.00014063,2]
[399630212,1766574512495,-2843.04217436,0.00014063,2]
[399630213,1766574512505,-500.0,0.00014096,2]
[399630214,1766574512514,-500.0,0.00014096,2]
[399630215,1766574512523,-500.0,0.00014096,2]
[399630216,1766574512532,-384.5338958,0.00014096,2]
[399630217,1766574512542,-200.28583672,0.00014096,2]
[399630218,1766574512552,-500.0,0.00014096,2]
[399630219,1766574512561,-299.99,0.00014097,2]
[399630220,1766574512571,-4272.15809312,0.00014097,2]
[399630221,1766574517085,-3350.27190688,0.00014097,2]
[399630222,1766574517114,-150.99,0.00014097,2]
[399630223,1766574517142,-1420.33618624,0.00014097,2]
[399630224,1766574517201,-156.81381376,0.00014097,2]
[399630225,1766574523169,-150.99,0.00014097,2]
[399630226,1766574523206,-9698.03,0.00014097,2]
[399630227,1766574529199,-10000.01,0.00013963,2]
[399630228,1766574549745,1224.34,0.00032877,120]
[399630229,1766574564278,168.57,0.00010882,2]
[399630230,1766574564470,168.57,0.00012696,2]
[399630231,1766574625290,-165.10888867,0.00013862,2]
[399630232,1766574625321,-150.0,0.00013962,2]
[399630233,1766574625351,-300.0,0.00013962,2]
[399630234,1766574625382,-1200.0,0.00013962,2]
[399630235,1766574625413,-265.0,0.00013962,2]
[399630236,1766574625444,-365.93751537,0.00013962,2]
[399630237,1766574625474,-195.0,0.00013962,2]
[399630238,1766574625644,-4717.91719192,0.00013963,2]
[399630242,1766574631492,-106831.78932555,0.00013963,2]
[399630243,1766574631511,-10000.01,0.00013963,2]
[399630244,1766574631526,-1573.78266955,0.00013963,2]
[399630258,1766574637400,-214.01681167,0.00013962,2]
[399630259,1766574637410,-120.99142416,0.00013962,2]
[399630260,1766574637492,-379.00857584,0.00013962,2]
[399630261,1766574637502,-500.0,0.00013962,2]
[399630262,1766574637512,-306.59805119,0.00013962,2]
[399630263,1766574637523,-188.04313564,0.00013962,2]
[399630264,1766574637533,-264.94821064,0.00013962,2]
[399630265,1766574637543,-866876.49081298,0.00013963,2]
[399630266,1766574637554,-18445.21147343,0.00013997,2]
[399630267,1766574637564,-301.96,0.00014097,2]
[399630268,1766574637575,-9999.99,0.00014097,2]
[399630269,1766574637585,-13357.38,0.00014097,2]
[399630270,1766574637595,-9633.98,0.00014097,2]
[399630271,1766574637606,-999.99,0.00014097,2]
[399630272,1766574637616,-9999.99,0.00014097,2]
[399630273,1766574637626,-9999.99,0.00014097,2]
[399630274,1766574637636,-190.58155959,0.00014097,2]
[399630275,1766574637646,-151.0,0.00014097,2]
[399630276,1766574637656,-170.42,0.00014131,2]
[399630277,1766574637666,-6691.5941,0.00014298,2]
[399630278,1766574637676,-18445.21147338,0.0001432,2]
[399630279,1766574637687,-2500.0,0.00014396,2]
[399630280,1766574637697,-1598.801,0.00014398,2]
[399630281,1766574637707,-186.749,0.00014398,2]
[399630282,1766574637717,-23068.1033,0.00014398,2]
[399630283,1766574637727,-519.59185884,0.0001441,2]
[399630284,1766574637738,-151.0,0.0001441,2]
[399630285,1766574637748,-151.0,0.0001441,2]
[399630286,1766574637759,-151.0,0.0001441,2]
[399630287,1766574637771,-151.0,0.0001441,2]
[399630289,1766574637781,-151.0,0.0001441,2]
[399630292,1766574637791,-151.0,0.0001441,2]
[399630295,1766574637802,-151.0,0.0001441,2]
[399630297,1766574637812,-151.0,0.0001441,2]
[399630299,1766574637822,-151.0,0.0001441,2]
[399630301,1766574637833,-151.0,0.0001441,2]
[399630303,1766574637850,-151.0,0.00014416,2]
[399630305,1766574637860,-20479.288158,0.00014419,2]
[399630307,1766574637870,-177.65440245,0.00014419,2]
[399630309,1766574637880,-300.0,0.00014437,2]
[399630310,1766574637891,-150.0,0.00014464,2]
[399630311,1766574637901,-497.0,0.00014464,2]
[399630312,1766574637912,-500.0,0.00014464,2]
[399630313,1766574637923,-500.0,0.00014464,2]
[399630314,1766574637935,-156.58520274,0.00014464,2]
[399630315,1766574637945,-500.0,0.00014464,2]
[399630316,1766574637955,-150.0,0.00014464,2]
[399630317,1766574637966,-150.9439251,0.00014491,2]
[399630318,1766574637977,-497.0,0.00014491,2]
[399630319,1766574637988,-500.0,0.00014491,2]
[399630320,1766574637999,-569.88171229,0.00014491,2]
[399630321,1766574638009,-500.0,0.00014491,2]
[399630322,1766574638019,-156.7431376,0.00014491,2]
[399630323,1766574638030,-2160.07046784,0.00014495,2]
[399630324,1766574638040,-500.0,0.00014497,2]
[399630325,1766574638051,-500.0,0.00014497,2]
[399630326,1766574638062,-500.0,0.00014497,2]
[399630327,1766574638072,-500.0,0.00014497,2]
[399630328,1766574638083,-500.0,0.00014497,2]
[399630329,1766574638098,-500.0,0.00014497,2]
[399630330,1766574638109,-500.0,0.00014497,2]
[399630331,1766574638120,-1244.21357412,0.00014497,5]
[399630332,1766574638130,-500.0,0.00014497,2]
[399630333,1766574638141,-500.0,0.00014497,2]
[399630334,1766574638151,-500.0,0.00014497,2]
[399630335,1766574638162,-500.0,0.00014497,2]
[399630336,1766574638172,-500.0,0.00014497,2]
[399630337,1766574638183,-500.0,0.00014497,2]
[399630338,1766574638193,-500.0,0.00014497,2]
[399630339,1766574638204,-500.0,0.00014497,2]
[399630340,1766574638219,-500.0,0.00014497,2]
[399630341,1766574638229,-500.0,0.00014497,2]
[399630342,1766574638239,-500.0,0.00014497,2]
[399630343,1766574638249,-500.0,0.00014497,2]
[399630344,1766574638260,-500.0,0.00014497,2]
[399630345,1766574638271,-500.0,0.00014497,2]
[399630346,1766574638282,-500.0,0.00014497,2]
[399630347,1766574638293,-500.0,0.00014497,2]
[399630348,1766574638303,-500.0,0.00014497,2]
[399630349,1766574638315,-500.0,0.00014497,2]
[399630350,1766574638325,-500.0,0.00014497,2]
[399630351,1766574638336,-345.61944789,0.00014497,2]
[399630352,1766574638346,-500.0,0.00014497,2]
[399630353,1766574638356,-500.0,0.00014497,2]
[399630354,1766574638366,-500.0,0.00014497,2]
[399630355,1766574638376,-500.0,0.00014497,2]
[399630356,1766574638387,-500.0,0.00014497,2]
[399630357,1766574638397,-500.0,0.00014497,2]
[399630358,1766574638407,-500.0,0.00014497,2]
[399630359,1766574638418,-500.0,0.00014497,2]
[399630360,1766574638428,-500.0,0.00014497,2]
[399630361,1766574638438,-500.0,0.00014497,2]
[399630362,1766574638449,-500.0,0.00014497,2]
[399630363,1766574638459,-500.0,0.00014497,2]
[399630364,1766574638470,-500.0,0.00014497,2]
[399630365,1766574638482,-500.0,0.00014497,2]
[399630366,1766574638492,-500.0,0.00014497,2]
[399630367,1766574638502,-500.0,0.00014497,2]
[399630368,1766574638512,-500.0,0.00014497,2]
[399630369,1766574638522,-500.0,0.00014497,2]
[399630370,1766574638532,-500.0,0.00014497,2]
[399630371,1766574638543,-500.0,0.00014497,2]
[399630372,1766574638553,-528.10208627,0.00014497,2]
[399630373,1766574638563,-500.0,0.00014497,2]
[399630374,1766574638578,-398.68934422,0.00014497,2]
[399630375,1766574638588,-500.0,0.00014497,2]
[399630376,1766574638599,-500.0,0.00014497,2]
[399630377,1766574638610,-500.0,0.00014497,2]
[399630378,1766574638620,-500.0,0.00014497,2]
[399630379,1766574638631,-500.0,0.00014497,2]
[399630380,1766574638642,-500.0,0.00014497,2]
[399630381,1766574638653,-2137.14,0.00014497,2]
[399630382,1766574638664,-500.0,0.00014497,2]
[399630383,1766574638675,-500.0,0.00014497,2]
[399630384,1766574638687,-500.0,0.00014497,2]
[399630385,1766574638698,-543.18761393,0.00014497,2]
[399630386,1766574638709,-500.0,0.00014497,2]
[399630387,1766574638720,-500.0,0.00014497,2]
[399630388,1766574638731,-500.0,0.00014497,2]
[399630389,1766574638743,-500.0,0.00014497,2]
[399630390,1766574638754,-500.0,0.00014497,2]
[399630391,1766574638765,-500.0,0.00014497,2]
[399630392,1766574638776,-168.57,0.00014509,2]
[399630393,1766574638787,-497.0,0.00014519,2]
[399630394,1766574638798,-500.0,0.00014519,2]
[399630395,1766574638808,-554.97447821,0.00014519,2]
[399630396,1766574638819,-497.0,0.00014546,2]
[399630397,1766574638830,-500.0,0.00014546,2]
[399630398,1766574638841,-497.0,0.00014574,2]
[399630399,1766574638851,-500.0,0.00014574,2]
[399630400,1766574638862,-526.00597189,0.00014596,2]
[399630401,1766574638872,-500.0,0.00014596,2]
[399630402,1766574638883,-500.0,0.00014596,2]
[399630403,1766574638893,-500.0,0.00014596,2]
[399630404,1766574638904,-500.0,0.00014596,2]
[399630405,1766574638917,-500.0,0.00014596,2]
[399630406,1766574638932,-500.0,0.00014596,2]
[399630407,1766574638946,-500.0,0.00014596,2]
[399630408,1766574638956,-500.0,0.00014596,2]
[399630409,1766574638968,-500.0,0.00014596,2]
[399630410,1766574638978,-500.0,0.00014596,2]
[399630411,1766574638989,-500.0,0.00014596,2]
[399630412,1766574638999,-500.0,0.00014596,2]
[399630413,1766574639010,-582.59898014,0.00014596,2]
[399630414,1766574639020,-500.0,0.00014596,2]
[399630415,1766574639031,-500.0,0.00014596,2]
[399630416,1766574639042,-512.7999143,0.00014596,2]
[399630417,1766574639052,-500.0,0.00014596,2]
[399630418,1766574639064,-32493.81502899,0.00014597,2]
[399630419,1766574639075,-1000.0,0.00014597,2]
[399630420,1766574639086,-497.0,0.00014601,2]
[399630421,1766574639097,-500.0,0.00014601,2]
[399630422,1766574639107,-497.0,0.00014628,2]
[399630423,1766574639118,-500.0,0.00014628,2]
[399630424,1766574639128,-300.0,0.00014631,2]
[399630425,1766574639139,-193.0,0.00014631,2]
[399630426,1766574639149,-195.0,0.00014631,2]
[399630427,1766574639161,-300.0,0.00014632,2]
[399630428,1766574639171,-300.0,0.00014632,2]
[399630429,1766574639181,-300.0,0.00014632,2]
[399630430,1766574639191,-300.0,0.00014632,2]
[399630431,1766574639201,-300.0,0.00014632,2]
[399630432,1766574639211,-250.0,0.00014632,2]
[399630433,1766574639221,-2500.0,0.00014632,2]
[399630434,1766574639231,-195.0,0.00014632,2]
[399630435,1766574639241,-18445.21147338,0.00014642,2]
[399630436,1766574639252,-1680.0,0.00014647,2]
[399630437,1766574639261,-497.0,0.00014656,2]
[399630438,1766574639272,-500.0,0.00014656,2]
[399630439,1766574639282,-497.0,0.00014683,2]
[399630440,1766574639293,-500.0,0.00014683,2]
[399630441,1766574639303,-1191.16039457,0.00014685,2]
[399630442,1766574639312,-20479.28815793,0.00014695,2]
[399630443,1766574639331,-500.0,0.00014696,2]
[399630444,1766574639347,-500.0,0.00014696,2]
[399630445,1766574639358,-500.0,0.00014696,2]
[399630446,1766574639368,-500.0,0.00014696,2]
[399630447,1766574639380,-500.0,0.00014696,2]
[399630448,1766574639390,-500.0,0.00014696,2]
[399630449,1766574639400,-500.0,0.00014696,2]
[399630450,1766574639410,-500.0,0.00014696,2]
[399630451,1766574639420,-500.0,0.00014696,2]
[399630452,1766574639431,-500.0,0.00014696,2]
[399630453,1766574639441,-500.0,0.00014696,2]
[399630455,1766574639451,-500.0,0.00014696,2]
[399630457,1766574639462,-500.0,0.00014696,2]
[399630459,1766574639472,-411.98933297,0.00014696,2]
[399630461,1766574639482,-500.0,0.00014696,2]
[399630464,1766574639492,-500.0,0.00014696,2]
[399630466,1766574639502,-500.0,0.00014696,2]
[399630468,1766574639513,-500.0,0.00014696,2]
[399630470,1766574639523,-500.0,0.00014696,2]
[399630472,1766574639533,-500.0,0.00014696,2]
[399630474,1766574639543,-500.0,0.00014696,2]
[399630476,1766574639553,-500.0,0.00014696,2]
[399630478,1766574639563,-500.0,0.00014696,2]
[399630480,1766574639572,-500.0,0.00014696,2]
[399630482,1766574639582,-500.0,0.00014696,2]
[399630484,1766574639592,-500.0,0.00014696,2]
[399630486,1766574639602,-500.0,0.00014696,2]
[399630488,1766574639612,-500.0,0.00014696,2]
[399630490,1766574639623,-500.0,0.00014696,2]
[399630492,1766574639633,-500.0,0.00014696,2]
[399630494,1766574639644,-500.0,0.00014696,2]
[399630496,1766574639654,-500.0,0.00014696,2]
[399630498,1766574639666,-500.0,0.00014696,2]
[399630501,1766574639682,-500.0,0.00014696,2]
[399630503,1766574639696,-500.0,0.00014696,2]
[399630505,1766574639707,-500.0,0.00014696,2]
[399630507,1766574639718,-500.0,0.00014696,2]
[399630509,1766574639729,-500.0,0.00014696,2]
[399630511,1766574639741,-500.0,0.00014696,2]
[399630514,1766574639752,-500.0,0.00014696,2]
[399630516,1766574639764,-500.0,0.00014696,2]
[399630518,1766574639775,-500.0,0.00014696,2]
[399630520,1766574639786,-600.0,0.00014698,2]
[399630522,1766574639796,-600.0,0.00014698,2]
[399630524,1766574639807,-600.0,0.00014698,2]
[399630526,1766574639817,-600.0,0.00014698,2]
[399630529,1766574639828,-600.0,0.00014698,2]
[399630532,1766574639838,-497.0,0.00014711,2]
[399630535,1766574639849,-500.0,0.00014711,2]
[399630537,1766574639859,-497.0,0.00014738,2]
[399630540,1766574639870,-465.63377507,0.00014738,2]
[399630543,1766574639880,-366.16,0.00014752,2]
[399630546,1766574639890,-641.03,0.00014765,2]
[399630548,1766574639901,-497.0,0.00014765,2]
[399630550,1766574639915,-502.99520475,0.00014771,2]
[399630552,1766574639926,-2137.14,0.00014771,2]
[399630554,1766574639937,-10388.52056393,0.00014782,2]
[399630556,1766574639948,-497.0,0.00014793,2]
[399630558,1766574639960,-1375.31,0.00014802,2]
[399630560,1766574639970,-497.0,0.0001482,2]
[399630562,1766574639982,-197.88,0.00014836,2]
[399630564,1766574639992,-497.0,0.00014848,2]
[399630565,1766574640003,-500.0,0.00014853,2]
[399630566,1766574640013,-170.42,0.00014874,2]
[399630568,1766574640023,-497.0,0.00014875,2]
[399630570,1766574640033,-226.62941462,0.000149,2]
[399630573,1766574640049,-497.0,0.00014902,2]
[399630575,1766574640060,-497.0,0.0001493,2]
[399630577,1766574640070,-500.0,0.00014952,2]
[399630579,1766574640081,-497.0,0.00014957,2]
[399630582,1766574640092,-18445.21147338,0.00014965,2]
[399630583,1766574640102,-20479.28815793,0.0001497,2]
[399630584,1766574640112,-497.0,0.00014985,2]
[399630585,1766574640122,-530.21490798,0.00014998,2]
[399630586,1766574640133,-500.0,0.00014998,2]
[399630587,1766574640145,-497.0,0.00015012,2]
[399630588,1766574640156,-226.5,0.00015027,2]
[399630589,1766574640166,-497.0,0.00015039,2]
[399630590,1766574640177,-2137.14,0.00015045,2]
[399630591,1766574640188,-497.0,0.00015067,2]
[399630592,1766574640198,-255.0,0.00015079,2]
[399630593,1766574640209,-520.21768034,0.00015094,2]
[399630594,1766574640219,-546.71036452,0.00015156,2]
[399630595,1766574640229,-504.00842386,0.00015156,2]
[399630596,1766574640240,-500.0,0.00015156,2]
[399630597,1766574640250,-500.0,0.00015156,2]
[399630598,1766574640261,-500.0,0.00015156,2]
[399630599,1766574640271,-500.0,0.00015156,2]
[399630600,1766574640281,-500.0,0.00015156,2]
[399630601,1766574640291,-551.85860917,0.00015156,2]
[399630602,1766574640301,-500.0,0.00015172,2]
[399630603,1766574640311,-500.0,0.00015172,2]
[399630604,1766574640321,-500.0,0.00015172,2]
[399630605,1766574640331,-500.0,0.00015172,2]
[399630606,1766574640341,-500.0,0.00015172,2]
[399630607,1766574640351,-500.0,0.00015172,2]
[399630608,1766574640362,-169.37257746,0.00015173,2]
[399630609,1766574640372,-500.0,0.00015173,2]
[399630610,1766574640383,-172.85820104,0.00015173,2]
[399630611,1766574640393,-161.57308931,0.00015173,2]
[399630612,1766574640408,-163.19223575,0.00015173,2]
[399630613,1766574640419,-500.0,0.00015173,2]
[399630614,1766574640429,-500.0,0.00015173,2]
[399630615,1766574640439,-500.0,0.00015173,2]
[399630616,1766574640449,-500.0,0.00015173,2]
[399630617,1766574640459,-562.564449,0.00015173,2]
[399630618,1766574640470,-500.37919946,0.00015173,2]
[399630619,1766574640480,-500.08479975,0.00015173,2]
[399630620,1766574640490,-500.0,0.00015173,2]
[399630621,1766574640500,-167.20691349,0.00015173,2]
[399630622,1766574640511,-174.83400543,0.00015173,2]
[399630623,1766574640521,-500.0,0.00015173,2]
[399630624,1766574640531,-500.0,0.00015173,2]
[399630625,1766574640541,-224.16527175,0.00015173,2]
[399630626,1766574640553,-550.49299637,0.00015173,2]
[399630627,1766574640563,-500.0,0.00015173,2]
[399630628,1766574640575,-176.76151573,0.00015173,2]
[399630629,1766574640585,-500.0,0.00015173,2]
[399630630,1766574640596,-500.0,0.00015173,2]
[399630631,1766574640607,-500.0,0.00015173,2]
[399630632,1766574640617,-500.0,0.00015173,2]
[399630633,1766574640628,-453.84632834,0.00015173,2]
[399630634,1766574640638,-500.0,0.00015173,2]
[399630635,1766574640648,-500.0,0.00015173,2]
[399630636,1766574640658,-500.0,0.00015173,2]
[399630637,1766574640669,-500.0,0.00015173,2]
[399630638,1766574640680,-500.0,0.00015173,2]
[399630639,1766574640690,-500.0,0.00015173,2]
[399630640,1766574640700,-500.0,0.00015173,2]
[399630641,1766574640710,-500.0,0.00015173,2]
[399630642,1766574640721,-162.2863667,0.00015173,2]
[399630643,1766574640731,-500.0,0.00015173,2]
[399630644,1766574640741,-500.0,0.00015173,2]
[399630645,1766574640751,-500.0,0.00015173,2]
[399630646,1766574640765,-500.0,0.00015173,2]
[399630647,1766574640775,-500.0,0.00015173,2]
[399630648,1766574640786,-500.0,0.00015173,2]
[399630649,1766574640796,-516.09973549,0.00015173,2]
[399630650,1766574640806,-20479.28815793,0.00015246,2]
[399630651,1766574640817,-467.39546835,0.00015251,2]
[399630652,1766574640827,-150.0,0.00015288,2]
[399630653,1766574640838,-150.0,0.00015288,2]
[399630654,1766574640849,-150.0,0.00015288,2]
[399630655,1766574640859,-150.0,0.00015288,2]
[399630656,1766574640869,-150.0,0.00015288,2]
[399630657,1766574640879,-150.0,0.00015288,2]
[399630658,1766574640889,-150.0,0.00015288,2]
[399630659,1766574640899,-150.0,0.00015288,2]
[399630660,1766574640909,-152.31137415,0.00015288,2]
[399630661,1766574640920,-150.00000001,0.00015288,2]
[399630662,1766574640933,-150.0,0.00015288,2]
[399630663,1766574640943,-150.0,0.00015288,2]
[399630664,1766574640954,-150.0,0.00015288,2]
[399630665,1766574640965,-420.0,0.00015296,2]
[399630666,1766574640975,-151.0,0.000153,2]
[399630667,1766574640985,-151.0,0.0001531,2]
[399630668,1766574640996,-151.0,0.00015312,2]
[399630669,1766574641007,-151.0,0.00015317,2]
[399630670,1766574641017,-2137.14,0.00015319,2]
[399630671,1766574641027,-1680.0,0.00015358,2]
[399630672,1766574641496,-195.0,0.00015358,2]
[399630673,1766574641507,-250.0,0.00015358,2]
[399630674,1766574641517,-5000.0,0.00015358,4]
[399630675,1766574641527,-300.0,0.00015358,2]
[399630676,1766574641536,-1092.09895844,0.00015365,7]
[399630677,1766574641546,-150.0,0.00015401,2]
[399630678,1766574641556,-500.0,0.00015431,2]
[399630679,1766574641566,-150.0,0.00015476,2]
[399630680,1766574641575,-150.0,0.00015514,2]
[399630681,1766574641585,-20479.28815793,0.00015522,2]
[399630682,1766574641595,-150.0,0.0001553,2]
[399630683,1766574641604,-150.0,0.0001553,2]
[399630684,1766574641614,-150.0,0.0001553,2]
[399630685,1766574641624,-150.0,0.0001553,2]
[399630686,1766574641634,-345.07610358,0.00015541,2]
[399630687,1766574641643,-150.0,0.00015571,2]
[399630688,1766574641653,-620.0,0.00015592,2]
[399630689,1766574641663,-253.74257372,0.00015592,2]
[399630690,1766574641673,-500.0,0.00015592,2]
[399630691,1766574641682,-500.0,0.00015592,2]
[399630692,1766574641693,-578.20924308,0.00015592,2]
[399630693,1766574641703,-500.0,0.00015592,2]
[399630694,1766574641713,-500.0,0.00015592,2]
[399630695,1766574641723,-500.0,0.00015592,2]
[399630696,1766574641732,-500.0,0.00015592,2]
[399630697,1766574641742,-500.0,0.00015592,2]
[399630698,1766574641752,-500.0,0.00015592,2]
[399630699,1766574641762,-500.0,0.00015592,2]
[399630700,1766574641771,-500.0,0.00015592,2]
[399630701,1766574641781,-500.0,0.00015592,2]
[399630702,1766574641791,-500.0,0.00015592,2]
[399630703,1766574641802,-500.0,0.00015592,2]
[399630704,1766574641812,-500.0,0.00015592,2]
[399630705,1766574641822,-500.0,0.00015592,2]
[399630706,1766574641832,-500.0,0.00015592,2]
[399630707,1766574641842,-500.0,0.00015592,2]
[399630708,1766574641853,-500.0,0.00015592,2]
[399630709,1766574641862,-500.0,0.00015592,2]
[399630710,1766574641872,-250.0,0.00015592,2]
[399630711,1766574641882,-500.0,0.00015592,2]
[399630712,1766574641892,-500.0,0.00015592,2]
[399630713,1766574641902,-200.0,0.00015592,2]
[399630714,1766574641914,-250.0,0.00015592,2]